fUST/lending_fUST_20250219
["ID","MTS","AMOUNT","RATE_DAILY","PERIOD"]
[353553388,1739910649990,-500.0,0.00013863,2]
[353553389,1739910650000,-500.0,0.00013863,2]
[353553390,1739910650010,-500.0,0.00013863,2]
[353553391,1739910650019,-500.0,0.00013863,2]
[353553392,1739910650028,-500.0,0.00013863,2]
[353553393,1739910650037,-500.0,0.00013863,2]
[353553394,1739910650047,-500.0,0.00013863,2]
[353553395,1739910650057,-500.0,0.00013863,2]
[353553396,1739910650066,-504.94025662,0.00013863,2]
[353553397,1739910650075,-500.0,0.00013863,2]
[353553398,1739910650086,-500.0,0.00013863,2]
[353553399,1739910650095,-500.0,0.00013863,2]
[353553400,1739910650105,-502.59527996,0.00013863,2]
[353553401,1739910650116,-225.43706974,0.00013863,2]
[353553402,1739910650126,-505.07929448,0.00013863,2]
[353553403,1739910650138,-500.0,0.00013863,2]
[353553404,1739910650149,-500.0,0.00013863,2]
[353553405,1739910650158,-458.90669651,0.00013863,2]
[353553406,1739910650168,-562.39996102,0.00013863,2]
[353553407,1739910650178,-500.0,0.00013863,2]
[353553408,1739910650187,-500.0,0.00013863,2]
[353553409,1739910650196,-500.0,0.00013863,2]
[353553410,1739910650206,-440.76142135,0.00013863,2]
[353553411,1739910650215,-500.0,0.00013863,2]
[353553412,1739910650225,-502.42287607,0.00013863,2]
[353553413,1739910650235,-500.0,0.00013863,2]
[353553414,1739910650245,-533.72,0.00013863,2]
[353553415,1739910650254,-500.0,0.00013863,2]
[353553416,1739910650264,-500.0,0.00013863,2]
[353553417,1739910650274,-204.09565581,0.00013863,2]
[353553418,1739910650284,-500.0,0.00013863,2]
[353553419,1739910650293,-500.0,0.00013863,2]
[353553420,1739910650303,-500.0,0.00013863,2]
[353553421,1739910650313,-500.0,0.00013863,2]
[353553422,1739910650323,-500.0,0.00013863,2]
[353553423,1739910650332,-500.0,0.00013863,2]
[353553424,1739910650342,-500.0,0.00013863,2]
[353553425,1739910650351,-516.07977742,0.00013863,2]
[353553426,1739910650360,-500.0,0.00013863,2]
[353553427,1739910650370,-229.68655703,0.00013863,2]
[353553428,1739910650379,-500.0,0.00013863,2]
[353553429,1739910650390,-500.0,0.00013863,2]
[353553430,1739910650399,-500.0,0.00013863,2]
[353553431,1739910650409,-500.0,0.00013863,2]
[353553432,1739910650420,-500.0,0.00013863,2]
[353553433,1739910650429,-500.0,0.00013863,2]
[353553434,1739910650439,-500.0,0.00013863,2]
[353553435,1739910650449,-500.0,0.00013863,2]
[353553436,1739910650459,-500.0,0.00013863,2]
[353553437,1739910650468,-500.0,0.00013863,2]
[353553438,1739910650478,-500.0,0.00013863,2]
[353553439,1739910650488,-500.0,0.00013863,2]
[353553440,1739910650497,-500.0,0.00013863,2]
[353553441,1739910650506,-2082.6,0.00013863,2]
[353553442,1739910650516,-500.0,0.00013863,2]
[353553443,1739910650525,-500.0,0.00013863,2]
[353553444,1739910650535,-940.05,0.00013863,2]
[353553445,1739910650545,-500.0,0.00013863,2]
[353553446,1739910650554,-1152.69,0.00013863,2]
[353553447,1739910650564,-500.0,0.00013863,2]
[353553448,1739910650573,-610.78,0.00013863,2]
[353553449,1739910650583,-500.0,0.00013863,2]
[353553450,1739910650592,-178.7874689,0.00013863,2]
[353553451,1739910650602,-500.0,0.00013863,2]
[353553452,1739910650612,-500.0,0.00013863,2]
[353553453,1739910650622,-500.0,0.00013863,2]
[353553454,1739910650632,-500.0,0.00013863,2]
[353553455,1739910650645,-15167.77,0.00013863,2]
[353553456,1739910650655,-2899.21,0.00013863,2]
[353553457,1739910650665,-229.6017863,0.00013863,2]
[353553458,1739910650674,-959.05,0.00013863,2]
[353553459,1739910650684,-500.0,0.00013863,2]
[353553460,1739910650694,-658.14,0.00013863,2]
[353553461,1739910650703,-500.0,0.00013863,2]
[353553462,1739910650712,-500.0,0.00013863,2]
[353553463,1739910650722,-500.0,0.00013863,2]
[353553464,1739910650731,-1281.39,0.00013863,2]
[353553465,1739910650741,-500.0,0.00013863,2]
[353553466,1739910650750,-500.0,0.00013863,2]
[353553467,1739910650759,-500.0,0.00013863,2]
[353553468,1739910650768,-500.0,0.00013863,2]
[353553469,1739910650778,-2201.34,0.00013863,2]
[353553470,1739910650789,-508.91278574,0.00013863,2]
[353553471,1739910650799,-500.0,0.00013863,2]
[353553472,1739910650809,-500.0,0.00013863,2]
[353553473,1739910650818,-500.0,0.00013863,2]
[353553474,1739910650828,-500.0,0.00013863,2]
[353553475,1739910650838,-500.0,0.00013863,2]
[353553476,1739910650848,-1376.8,0.00013863,2]
[353553477,1739910650858,-500.0,0.00013863,2]
[353553478,1739910650869,-500.0,0.00013863,2]
[353553479,1739910650879,-500.0,0.00013863,2]
[353553480,1739910650893,-640.63,0.00013863,2]
[353553481,1739910650902,-500.0,0.00013863,2]
[353553482,1739910650911,-500.0,0.00013863,2]
[353553483,1739910650920,-500.0,0.00013863,2]
[353553484,1739910650930,-1324.39,0.00013863,2]
[353553485,1739910650940,-294.02,0.00013863,2]
[353553486,1739910650949,-601.43,0.00013863,2]
[353553487,1739910650959,-500.0,0.00013863,2]
[353553488,1739910650968,-175.6,0.00013863,2]
[353553489,1739910650977,-500.0,0.00013863,2]
[353553490,1739910650987,-572.12,0.00013863,2]
[353553491,1739910650996,-500.0,0.00013863,2]
[353553492,1739910651005,-500.0,0.00013863,2]
[353553493,1739910651015,-805.8,0.00013863,2]
[353553494,1739910651024,-500.0,0.00013863,2]
[353553495,1739910651034,-500.0,0.00013863,2]
[353553496,1739910651044,-678.42,0.00013863,2]
[353553497,1739910651053,-500.0,0.00013863,2]
[353553498,1739910651063,-500.0,0.00013863,2]
[353553499,1739910651072,-500.0,0.00013863,2]
[353553500,1739910651082,-500.0,0.00013863,2]
[353553501,1739910651092,-500.0,0.00013863,2]
[353553502,1739910651102,-500.0,0.00013863,2]
[353553503,1739910651113,-500.0,0.00013863,2]
[353553504,1739910651124,-5646.02,0.00013863,2]
[353553505,1739910651135,-500.0,0.00013863,2]
[353553506,1739910651145,-1675.27,0.00013863,2]
[353553507,1739910651155,-639.1,0.00013863,2]
[353553508,1739910651164,-500.0,0.00013863,2]
[353553509,1739910651174,-500.0,0.00013863,2]
[353553510,1739910651184,-1205.25327335,0.00013927,2]
[353553511,1739910651194,-587.0,0.00013938,2]
[353553512,1739910651204,-480.61972094,0.00013945,2]
[353553513,1739910651213,-500.0,0.00013945,2]
[353553514,1739910651224,-546.17,0.00013945,2]
[353553515,1739910651233,-502.93496274,0.00013945,2]
[353553516,1739910651242,-585.62095595,0.00013945,2]
[353553517,1739910651252,-500.0,0.00013945,2]
[353553518,1739910651262,-502.62087509,0.00013945,2]
[353553519,1739910651271,-500.0,0.00013945,2]
[353553520,1739910651281,-507.25283716,0.00013945,2]
[353553521,1739910651291,-500.0,0.00013945,2]
[353553522,1739910651301,-500.0,0.00013945,2]
[353553523,1739910651311,-500.0,0.00013945,2]
[353553524,1739910651321,-513.88386975,0.00013945,2]
[353553525,1739910651331,-502.97426491,0.00013945,2]
[353553526,1739910651340,-500.0,0.00013945,2]
[353553527,1739910651350,-210.53,0.00013945,2]
[353553528,1739910651359,-713.18,0.00013945,2]
[353553529,1739910651369,-500.0,0.00013945,2]
[353553530,1739910651379,-500.0,0.00013945,2]
[353553531,1739910651390,-500.0,0.00013945,2]
[353553532,1739910651399,-500.0,0.00013945,2]
[353553533,1739910651409,-500.0,0.00013945,2]
[353553534,1739910651419,-500.0,0.00013945,2]
[353553535,1739910651428,-521.92,0.00013945,2]
[353553536,1739910651437,-500.0,0.00013945,2]
[353553537,1739910651447,-237.32,0.00013945,2]
[353553538,1739910651456,-500.0,0.00013945,2]
[353553539,1739910651466,-500.0,0.00013945,2]
[353553540,1739910651476,-500.0,0.00013945,2]
[353553541,1739910651485,-500.0,0.00013945,2]
[353553542,1739910651495,-500.0,0.00013945,2]
[353553543,1739910651504,-500.0,0.00013945,2]
[353553544,1739910651514,-500.0,0.00013945,2]
[353553545,1739910651611,-295.27144486,0.00013945,2]
[353553546,1739910651621,-500.0,0.00013945,2]
[353553547,1739910651631,-500.0,0.00013945,2]
[353553548,1739910651641,-519.31286361,0.00013945,2]
[353553549,1739910651651,-500.0,0.00013945,2]
[353553550,1739910651661,-533.72,0.00013945,2]
[353553551,1739910651671,-505.0875877,0.00013945,2]
[353553552,1739910651681,-500.0,0.00013945,2]
[353553553,1739910651690,-500.0,0.00013945,2]
[353553554,1739910651701,-500.0,0.00013945,2]
[353553555,1739910651710,-500.0,0.00013945,2]
[353553556,1739910651720,-301.21532777,0.00013945,2]
[353553557,1739910651729,-500.0,0.00013945,2]
[353553558,1739910651739,-500.0,0.00013945,2]
[353553559,1739910651749,-500.0,0.00013945,2]
[353553560,1739910651758,-500.0,0.00013945,2]
[353553561,1739910651768,-500.0,0.00013945,2]
[353553562,1739910651777,-500.0,0.00013945,2]
[353553563,1739910651788,-340.18,0.00013945,2]
[353553564,1739910651799,-500.0,0.00013945,2]
[353553565,1739910651808,-500.0,0.00013945,2]
[353553566,1739910651817,-500.0,0.00013945,2]
[353553567,1739910651827,-500.0,0.00013945,2]
[353553568,1739910651837,-2082.6,0.00013945,2]
[353553569,1739910651847,-327.69,0.00013945,2]
[353553570,1739910651856,-500.0,0.00013945,2]
[353553571,1739910651867,-940.05,0.00013945,2]
[353553572,1739910651876,-1152.69,0.00013945,2]
[353553573,1739910651889,-610.78,0.00013945,2]
[353553574,1739910651900,-500.0,0.00013945,2]
[353553575,1739910651910,-500.0,0.00013945,2]
[353553576,1739910651921,-500.0,0.00013945,2]
[353553577,1739910651931,-500.0,0.00013945,2]
[353553578,1739910651941,-403.87,0.00013945,2]
[353553579,1739910651951,-15167.77,0.00013945,2]
[353553580,1739910651961,-2899.21,0.00013945,2]
[353553581,1739910651971,-959.05,0.00013945,2]
[353553582,1739910651980,-500.0,0.00013945,2]
[353553583,1739910651989,-658.14,0.00013945,2]
[353553584,1739910651999,-500.0,0.00013945,2]
[353553585,1739910652009,-500.0,0.00013945,2]
[353553586,1739910652019,-1281.39,0.00013945,2]
[353553587,1739910652029,-500.0,0.00013945,2]
[353553588,1739910652039,-500.0,0.00013945,2]
[353553589,1739910652049,-500.0,0.00013945,2]
[353553590,1739910652058,-2201.34,0.00013945,2]
[353553591,1739910652068,-500.0,0.00013945,2]
[353553592,1739910652077,-500.0,0.00013945,2]
[353553593,1739910652086,-500.0,0.00013945,2]
[353553594,1739910652096,-500.0,0.00013945,2]
[353553595,1739910652105,-1376.8,0.00013945,2]
[353553596,1739910652115,-257.35514769,0.00013945,2]
[353553597,1739910652124,-640.63,0.00013945,2]
[353553598,1739910652133,-500.0,0.00013945,2]
[353553599,1739910652146,-500.0,0.00013945,2]
[353553600,1739910652155,-1324.39,0.00013945,2]
[353553601,1739910652163,-601.43,0.00013945,2]
[353553602,1739910652172,-500.0,0.00013945,2]
[353553603,1739910652181,-572.12,0.00013945,2]
[353553604,1739910652190,-500.0,0.00013945,2]
[353553605,1739910652199,-384.54830207,0.00013945,2]
[353553606,1739910652209,-805.8,0.00013945,2]
[353553607,1739910652218,-500.0,0.00013945,2]
[353553608,1739910652227,-678.42,0.00013945,2]
[353553609,1739910652237,-500.0,0.00013945,2]
[353553610,1739910652246,-500.0,0.00013945,2]
[353553611,1739910652256,-500.0,0.00013945,2]
[353553612,1739910652266,-500.0,0.00013945,2]
[353553613,1739910652276,-500.0,0.00013945,2]
[353553614,1739910652286,-5646.02,0.00013945,2]
[353553615,1739910652296,-500.0,0.00013945,2]
[353553616,1739910652306,-1675.27,0.00013945,2]
[353553617,1739910652315,-639.1,0.00013945,2]
[353553618,1739910652324,-500.0,0.00013945,2]
[353553619,1739910652333,-713.18,0.00014027,2]
[353553620,1739910652343,-500.0,0.00014027,2]
[353553621,1739910652352,-500.0,0.00014027,2]
[353553622,1739910652362,-500.0,0.00014027,2]
[353553623,1739910652372,-521.92,0.00014027,2]
[353553624,1739910652382,-500.0,0.00014027,2]
[353553625,1739910652393,-500.0,0.00014027,2]
[353553626,1739910652402,-500.0,0.00014027,2]
[353553627,1739910652412,-500.0,0.00014027,2]
[353553628,1739910652422,-500.0,0.00014027,2]
[353553629,1739910652431,-500.0,0.00014027,2]
[353553630,1739910652441,-500.0,0.00014027,2]
[353553631,1739910652451,-500.0,0.00014027,2]
[353553632,1739910652460,-533.72,0.00014027,2]
[353553633,1739910652470,-500.0,0.00014027,2]
[353553634,1739910652480,-500.0,0.00014027,2]
[353553635,1739910652489,-500.0,0.00014027,2]
[353553636,1739910652499,-500.0,0.00014027,2]
[353553637,1739910652508,-500.0,0.00014027,2]
[353553638,1739910652518,-500.0,0.00014027,2]
[353553639,1739910652527,-500.0,0.00014027,2]
[353553640,1739910652537,-500.0,0.00014027,2]
[353553641,1739910652547,-500.0,0.00014027,2]
[353553642,1739910652557,-443.71291464,0.00014027,2]
[353553643,1739910652566,-2082.6,0.00014027,2]
[353553644,1739910652575,-359.35027064,0.00014027,2]
[353553645,1739910652585,-940.05,0.00014027,2]
[353553646,1739910652594,-1152.69,0.00014027,2]
[353553647,1739910652604,-610.78,0.00014027,2]
[353553648,1739910652614,-500.0,0.00014027,2]
[353553649,1739910652623,-500.0,0.00014027,2]
[353553650,1739910652633,-500.0,0.00014027,2]
[353553651,1739910652645,-15167.77,0.00014027,2]
[353553652,1739910652654,-2899.21,0.00014027,2]
[353553653,1739910652663,-959.05,0.00014027,2]
[353553654,1739910652673,-500.89567574,0.00014027,2]
[353553655,1739910652682,-658.14,0.00014027,2]
[353553656,1739910652692,-500.0,0.00014027,2]
[353553657,1739910652701,-500.0,0.00014027,2]
[353553658,1739910652710,-1281.39,0.00014027,2]
[353553659,1739910652719,-500.0,0.00014027,2]
[353553660,1739910652729,-500.0,0.00014027,2]
[353553661,1739910652738,-500.0,0.00014027,2]
[353553662,1739910652749,-2201.34,0.00014027,2]
[353553663,1739910652759,-500.0,0.00014027,2]
[353553664,1739910652768,-500.0,0.00014027,2]
[353553665,1739910652779,-500.0,0.00014027,2]
[353553666,1739910652792,-500.0,0.00014027,2]
[353553667,1739910652802,-1376.8,0.00014027,2]
[353553668,1739910652811,-640.63,0.00014027,2]
[353553669,1739910652820,-500.0,0.00014027,2]
[353553670,1739910652831,-500.0,0.00014027,2]
[353553671,1739910652841,-1324.39,0.00014027,2]
[353553672,1739910652850,-601.43,0.00014027,2]
[353553673,1739910652860,-500.0,0.00014027,2]
[353553674,1739910652871,-572.12,0.00014027,2]
[353553675,1739910652880,-570.58,0.00014027,2]
[353553676,1739910652892,-805.8,0.00014027,2]
[353553677,1739910652901,-678.42,0.00014027,2]
[353553678,1739910652911,-500.0,0.00014027,2]
[353553679,1739910652922,-500.0,0.00014027,2]
[353553680,1739910652932,-500.0,0.00014027,2]
[353553681,1739910652943,-500.0,0.00014027,2]
[353553682,1739910652953,-5646.02,0.00014027,2]
[353553683,1739910652963,-500.0,0.00014027,2]
[353553684,1739910652973,-1675.27,0.00014027,2]
[353553685,1739910652983,-639.1,0.00014027,2]
[353553686,1739910652995,-500.0,0.00014027,2]
[353553687,1739910653005,-1424.00008567,0.00014091,2]
[353553688,1739910653016,-713.18,0.00014109,2]
[353553689,1739910653026,-500.0,0.00014109,2]
[353553690,1739910653036,-500.0,0.00014109,2]
[353553691,1739910653047,-500.0,0.00014109,2]
[353553692,1739910653056,-521.92,0.00014109,2]
[353553693,1739910653065,-500.0,0.00014109,2]
[353553694,1739910653074,-500.0,0.00014109,2]
[353553695,1739910653084,-500.0,0.00014109,2]
[353553696,1739910653094,-500.0,0.00014109,2]
[353553697,1739910653103,-500.0,0.00014109,2]
[353553698,1739910653113,-500.0,0.00014109,2]
[353553699,1739910653123,-500.0,0.00014109,2]
[353553700,1739910653132,-500.0,0.00014109,2]
[353553701,1739910653143,-533.72,0.00014109,2]
[353553702,1739910653152,-500.0,0.00014109,2]
[353553703,1739910653162,-500.0,0.00014109,2]
[353553704,1739910653171,-500.0,0.00014109,2]
[353553705,1739910653180,-500.0,0.00014109,2]
[353553706,1739910653190,-418.51,0.00014109,2]
[353553707,1739910653199,-500.0,0.00014109,2]
[353553708,1739910653208,-500.0,0.00014109,2]
[353553709,1739910653218,-2082.6,0.00014109,2]
[353553710,1739910653227,-940.05,0.00014109,2]
[353553711,1739910653237,-1152.69,0.00014109,2]
[353553712,1739910653246,-610.78,0.00014109,2]
[353553713,1739910653255,-500.0,0.00014109,2]
[353553714,1739910653265,-500.0,0.00014109,2]
[353553715,1739910653275,-500.0,0.00014109,2]
[353553716,1739910653284,-15167.77,0.00014109,2]
[353553717,1739910653293,-2899.21,0.00014109,2]
[353553718,1739910653303,-959.05,0.00014109,2]
[353553719,1739910653312,-658.14,0.00014109,2]
[353553720,1739910653321,-500.0,0.00014109,2]
[353553721,1739910653331,-500.0,0.00014109,2]
[353553722,1739910653340,-1281.39,0.00014109,2]
[353553723,1739910653349,-500.0,0.00014109,2]
[353553724,1739910653358,-500.0,0.00014109,2]
[353553725,1739910653368,-500.0,0.00014109,2]
[353553726,1739910653455,-2201.34,0.00014109,2]
[353553727,1739910653464,-500.0,0.00014109,2]
[353553728,1739910653473,-500.0,0.00014109,2]
[353553729,1739910653482,-500.0,0.00014109,2]
[353553730,1739910653492,-500.0,0.00014109,2]
[353553731,1739910653502,-1376.8,0.00014109,2]
[353553732,1739910653512,-640.63,0.00014109,2]
[353553733,1739910653522,-500.0,0.00014109,2]
[353553734,1739910653533,-500.0,0.00014109,2]
[353553735,1739910653542,-1324.39,0.00014109,2]
[353553736,1739910653552,-601.43,0.00014109,2]
[353553737,1739910653562,-572.12,0.00014109,2]
[353553738,1739910653571,-500.0,0.00014109,2]
[353553739,1739910653580,-805.8,0.00014109,2]
[353553740,1739910653590,-678.42,0.00014109,2]
[353553741,1739910653599,-500.0,0.00014109,2]
[353553742,1739910653610,-500.0,0.00014109,2]
[353553743,1739910653620,-500.0,0.00014109,2]
[353553744,1739910653631,-500.0,0.00014109,2]
[353553745,1739910653641,-5646.02,0.00014109,2]
[353553746,1739910653651,-500.0,0.00014109,2]
[353553747,1739910653661,-1675.27,0.00014109,2]
[353553748,1739910653670,-639.1,0.00014109,2]
[353553749,1739910653680,-500.0,0.00014109,2]
[353553750,1739910653691,-564.90709543,0.0001411,2]
[353553751,1739910653700,-7438.69753278,0.00014116,2]
[353553752,1739910653710,-344.689,0.00014186,2]
[353553753,1739910653721,-713.18,0.00014191,2]
[353553754,1739910653731,-500.0,0.00014191,2]
[353553755,1739910653742,-500.0,0.00014191,2]
[353553756,1739910653752,-500.0,0.00014191,2]
[353553757,1739910653762,-521.92,0.00014191,2]
[353553758,1739910653771,-500.0,0.00014191,2]
[353553759,1739910653782,-500.0,0.00014191,2]
[353553760,1739910653794,-500.0,0.00014191,2]
[353553761,1739910653804,-500.0,0.00014191,2]
[353553762,1739910653814,-500.0,0.00014191,2]
[353553763,1739910653825,-500.0,0.00014191,2]
[353553764,1739910653835,-500.0,0.00014191,2]
[353553765,1739910653845,-533.72,0.00014191,2]
[353553766,1739910653855,-500.0,0.00014191,2]
[353553767,1739910653867,-500.0,0.00014191,2]
[353553768,1739910653877,-500.0,0.00014191,2]
[353553769,1739910653887,-500.0,0.00014191,2]
[353553770,1739910653896,-500.0,0.00014191,2]
[353553771,1739910653906,-2082.6,0.00014191,2]
[353553772,1739910653917,-940.05,0.00014191,2]
[353553773,1739910653926,-1152.69,0.00014191,2]
[353553774,1739910653937,-610.78,0.00014191,2]
[353553775,1739910653946,-500.0,0.00014191,2]
[353553776,1739910653956,-500.0,0.00014191,2]
[353553777,1739910653966,-500.0,0.00014191,2]
[353553778,1739910653975,-15167.77,0.00014191,2]
[353553779,1739910653985,-2899.21,0.00014191,2]
[353553780,1739910653995,-959.05,0.00014191,2]
[353553781,1739910654004,-658.14,0.00014191,2]
[353553782,1739910654015,-500.0,0.00014191,2]
[353553783,1739910654024,-500.0,0.00014191,2]
[353553784,1739910654034,-1281.39,0.00014191,2]
[353553785,1739910654043,-500.0,0.00014191,2]
[353553786,1739910654053,-500.0,0.00014191,2]
[353553787,1739910654062,-500.0,0.00014191,2]
[353553788,1739910654071,-2201.34,0.00014191,2]
[353553789,1739910654081,-500.0,0.00014191,2]
[353553790,1739910654090,-500.0,0.00014191,2]
[353553791,1739910654099,-500.0,0.00014191,2]
[353553792,1739910654111,-500.0,0.00014191,2]
[353553793,1739910654120,-1376.8,0.00014191,2]
[353553794,1739910654130,-196.656108,0.00014191,2]
[353553795,1739910654140,-640.63,0.00014191,2]
[353553796,1739910654149,-500.0,0.00014191,2]
[353553797,1739910654159,-500.0,0.00014191,2]
[353553798,1739910654168,-1324.39,0.00014191,2]
[353553799,1739910654178,-601.43,0.00014191,2]
[353553800,1739910654188,-572.12,0.00014191,2]
[353553801,1739910654198,-500.0,0.00014191,2]
[353553802,1739910654208,-805.8,0.00014191,2]
[353553803,1739910654217,-613.187978,0.00014191,2]
[353553804,1739910654228,-678.42,0.00014191,2]
[353553805,1739910654239,-613.187978,0.00014191,2]
[353553806,1739910654251,-500.0,0.00014191,2]
[353553807,1739910654261,-500.0,0.00014191,2]
[353553808,1739910654273,-259.64,0.00014191,2]
[353553809,1739910654285,-500.0,0.00014191,2]
[353553810,1739910654295,-5646.02,0.00014191,2]
[353553811,1739910654305,-500.0,0.00014191,2]
[353553812,1739910654314,-1675.27,0.00014191,2]
[353553813,1739910654324,-639.1,0.00014191,2]
[353553814,1739910654334,-500.0,0.00014191,2]
[353553815,1739910654345,-267.607392,0.00014191,2]
[353553816,1739910654355,-267.607392,0.00014191,2]
[353553817,1739910654365,-349.57677234,0.00014221,2]
[353553818,1739910654375,-246.99571098,0.00014221,2]
[353553819,1739910654385,-1000.0,0.00014221,2]
[353553820,1739910654394,-500.0,0.00014221,2]
[353553821,1739910654403,-631.18133988,0.00014221,2]
[353553822,1739910654413,-713.18,0.00014273,2]
[353553823,1739910654423,-500.0,0.00014273,2]
[353553824,1739910654432,-500.0,0.00014273,2]
[353553825,1739910654443,-500.0,0.00014273,2]
[353553826,1739910654452,-521.92,0.00014273,2]
[353553827,1739910654462,-500.0,0.00014273,2]
[353553828,1739910654472,-500.0,0.00014273,2]
[353553829,1739910654482,-500.0,0.00014273,2]
[353553830,1739910654491,-500.0,0.00014273,2]
[353553831,1739910654501,-500.0,0.00014273,2]
[353553832,1739910654512,-500.0,0.00014273,2]
[353553833,1739910654522,-500.0,0.00014273,2]
[353553834,1739910654532,-533.72,0.00014273,2]
[353553835,1739910654544,-500.0,0.00014273,2]
[353553836,1739910654555,-320.71202402,0.00014273,2]
[353553837,1739910654565,-542.88,0.00014273,2]
[353553838,1739910654576,-538.49,0.00014273,2]
[353553839,1739910654586,-370.04,0.00014273,2]
[353553840,1739910654596,-2082.6,0.00014273,2]
[353553841,1739910654605,-940.05,0.00014273,2]
[353553842,1739910654615,-1152.69,0.00014273,2]
[353553843,1739910654626,-610.78,0.00014273,2]
[353553844,1739910654638,-500.0,0.00014273,2]
[353553845,1739910654648,-500.0,0.00014273,2]
[353553846,1739910654657,-500.0,0.00014273,2]
[353553847,1739910654667,-15167.77,0.00014273,2]
[353553848,1739910654676,-2899.21,0.00014273,2]
[353553849,1739910654687,-959.05,0.00014273,2]
[353553850,1739910654697,-658.14,0.00014273,2]
[353553851,1739910654706,-500.0,0.00014273,2]
[353553852,1739910654715,-500.0,0.00014273,2]
[353553853,1739910654725,-1281.39,0.00014273,2]
[353553854,1739910654735,-208.89385453,0.00014273,2]
[353553855,1739910654744,-500.0,0.00014273,2]
[353553856,1739910654753,-500.0,0.00014273,2]
[353553857,1739910654764,-2201.34,0.00014273,2]
[353553858,1739910654773,-500.0,0.00014273,2]
[353553859,1739910654783,-316.26,0.00014273,2]
[353553860,1739910654797,-151.0,0.00014273,2]
[353553861,1739910654806,-500.0,0.00014273,2]
[353553862,1739910654822,-211.9222936,0.00014273,2]
[353553863,1739910654836,-1376.8,0.00014273,2]
[353553864,1739910654846,-640.63,0.00014273,2]
[353553865,1739910654856,-500.0,0.00014273,2]
[353553866,1739910654866,-500.0,0.00014273,2]
[353553867,1739910654876,-1324.39,0.00014273,2]
[353553868,1739910654886,-601.43,0.00014273,2]
[353553869,1739910654896,-572.12,0.00014273,2]
[353553870,1739910654906,-500.0,0.00014273,2]
[353553871,1739910654915,-805.8,0.00014273,2]
[353553872,1739910654925,-678.42,0.00014273,2]
[353553873,1739910654935,-500.0,0.00014273,2]
[353553874,1739910654944,-500.0,0.00014273,2]
[353553875,1739910654954,-250.58923133,0.00014273,2]
[353553876,1739910654963,-5646.02,0.00014273,2]
[353553877,1739910654973,-373.92,0.00014273,2]
[353553878,1739910654983,-1675.27,0.00014273,2]
[353553879,1739910654992,-639.1,0.00014273,2]
[353553880,1739910655001,-500.0,0.00014273,2]
[353553881,1739910655010,-1000.0,0.00014321,2]
[353553882,1739910655019,-1000.0,0.00014321,2]
[353553883,1739910655027,-250.00242855,0.00014337,2]
[353553884,1739910655036,-713.18,0.00014356,2]
[353553885,1739910655046,-500.0,0.00014356,2]
[353553886,1739910655056,-500.0,0.00014356,2]
[353553887,1739910655066,-500.0,0.00014356,2]